[Event "Titled Tuesday Blitz February 15 Late 2022"]
[White "Ruiz Aguilar, Pablo Alexander"]
[Black "Kalajzic, Ivan"]
[WhiteFideId "4401352"]
[BlackFideId "14506378"]
[WhiteElo "2125"]
[BlackElo "2163"]
[Result "1-0"]
[Round "06"]
[TimeControl "180+1"]
[Date "2022.02.16"]
[WhiteClock "0:00:53"]
[BlackClock "0:00:13"]

1. e4 {[%clk 0:03:00]}  Nc6 {[%clk 0:02:59]} 2. Nf3 {[%clk 0:03:00]}  d6 {[%clk 0:02:59]} 3. h3 {[%clk 0:02:58]}  g6 {[%clk 0:02:58]} 4. d4 {[%clk 0:02:58]}  Bg7 {[%clk 0:02:58]} 5. c4 {[%clk 0:02:57]}  e5 {[%clk 0:02:58]} 6. d5 {[%clk 0:02:56]}  Nce7 {[%clk 0:02:58]} 7. Nc3 {[%clk 0:02:56]}  Nf6 {[%clk 0:02:58]} 8. Bg5 {[%clk 0:02:55]}  O-O {[%clk 0:02:57]} 9. Qd2 {[%clk 0:02:54]}  Kh8 {[%clk 0:02:52]} 10. h4 {[%clk 0:02:52]}  h5 {[%clk 0:02:42]} 11. Bxf6 {[%clk 0:02:43]}  Bxf6 {[%clk 0:02:41]} 12. Qh6+ {[%clk 0:02:43]}  Kg8 {[%clk 0:02:41]} 13. Ng5 {[%clk 0:02:44]}  Bxg5 {[%clk 0:02:37]} 14. hxg5 {[%clk 0:02:44]}  f6 {[%clk 0:02:21]} 15. Be2 {[%clk 0:02:32]}  Rf7 {[%clk 0:02:17]} 16. gxf6 {[%clk 0:02:28]}  Rxf6 {[%clk 0:02:15]} 17. Bxh5 {[%clk 0:02:25]}  Qf8 {[%clk 0:02:03]} 18. Qxf8+ {[%clk 0:02:25]}  Kxf8 {[%clk 0:01:54]} 19. Bf3 {[%clk 0:02:25]}  Kg7 {[%clk 0:01:54]} 20. Nb5 {[%clk 0:02:22]}  Bd7 {[%clk 0:01:46]} 21. O-O-O {[%clk 0:02:08]}  Rc8 {[%clk 0:01:41]} 22. Kb1 {[%clk 0:02:06]}  a6 {[%clk 0:01:37]} 23. Nc3 {[%clk 0:02:04]}  Rcf8 {[%clk 0:01:37]} 24. Rd2 {[%clk 0:02:01]}  g5 {[%clk 0:01:36]} 25. Nd1 {[%clk 0:01:58]}  g4 {[%clk 0:01:34]} 26. Be2 {[%clk 0:01:57]}  Ng6 {[%clk 0:01:32]} 27. g3 {[%clk 0:01:55]}  c5 {[%clk 0:01:23]} 28. Kc1 {[%clk 0:01:40]}  b5 {[%clk 0:01:22]} 29. Bd3 {[%clk 0:01:39]}  Rf3 {[%clk 0:01:10]} 30. Rh2 {[%clk 0:01:38]}  bxc4 {[%clk 0:01:06]} 31. Bxc4 {[%clk 0:01:32]}  Bb5 {[%clk 0:01:07]} 32. Be2 {[%clk 0:01:28]}  R3f6 {[%clk 0:00:54]} 33. Bxg4 {[%clk 0:01:26]}  Ne7 {[%clk 0:00:51]} 34. Ne3 {[%clk 0:01:26]}  Nc8 {[%clk 0:00:49]} 35. Bxc8 {[%clk 0:01:24]}  Rxc8 {[%clk 0:00:47]} 36. Nf5+ {[%clk 0:01:24]}  Rxf5 {[%clk 0:00:37]} 37. exf5 {[%clk 0:01:24]}  e4 {[%clk 0:00:35]} 38. Rh4 {[%clk 0:01:22]}  Bd3 {[%clk 0:00:34]} 39. f3 {[%clk 0:01:23]}  c4 {[%clk 0:00:25]} 40. fxe4 {[%clk 0:01:23]}  Kf6 {[%clk 0:00:26]} 41. Rh6+ {[%clk 0:01:17]}  Ke5 {[%clk 0:00:26]} 42. Re6+ {[%clk 0:01:18]}  Kd4 {[%clk 0:00:26]} 43. f6 {[%clk 0:01:12]}  Rh8 {[%clk 0:00:24]} 44. f7 {[%clk 0:01:06]}  Rf8 {[%clk 0:00:19]} 45. Rf2 {[%clk 0:01:05]}  Ke3 {[%clk 0:00:19]} 46. Rf4 {[%clk 0:01:04]}  Rh8 {[%clk 0:00:19]} 47. f8=Q {[%clk 0:00:54]}  Rh1+ {[%clk 0:00:18]} 48. Rf1 {[%clk 0:00:55]}  Bxf1 {[%clk 0:00:16]} 49. Qf4+ {[%clk 0:00:53]}  Kd3 {[%clk 0:00:14]} 50. Qf3+ {[%clk 0:00:53]}  Kd4 {[%clk 0:00:11]} 51. Qxh1 {[%clk 0:00:53]}  Bd3 {[%clk 0:00:12]} 52. Qf3 {[%clk 0:00:53]}  a5 {[%clk 0:00:13]} 53. Qf2# {[%clk 0:00:53]} 1-0


[Site "https://www.chess.com"]

[Event "Titled Tuesday Blitz February 15 Late 2022"]
[White "Rustemov, Alexander"]
[Black "Kravtsiv, Martyn"]
[WhiteFideId "4119002"]
[BlackFideId "14113147"]
[WhiteElo "2776"]
[BlackElo "2694"]
[Result "1-0"]
[Round "06"]
[TimeControl "180+1"]
[Date "2022.02.15"]
[WhiteClock "0:00:32"]
[BlackClock "0:00:05"]

1. d4 {[%clk 0:03:00]}  e6 {[%clk 0:02:59]} 2. c4 {[%clk 0:03:00]}  Nf6 {[%clk 0:02:59]} 3. Nf3 {[%clk 0:03:01]}  b6 {[%clk 0:02:58]} 4. a3 {[%clk 0:03:01]}  Bb7 {[%clk 0:02:58]} 5. Nc3 {[%clk 0:03:00]}  g6 {[%clk 0:02:58]} 6. Bf4 {[%clk 0:02:59]}  Bg7 {[%clk 0:02:58]} 7. e3 {[%clk 0:02:59]}  O-O {[%clk 0:02:58]} 8. h3 {[%clk 0:02:58]}  d5 {[%clk 0:02:53]} 9. Rc1 {[%clk 0:02:52]}  c6 {[%clk 0:02:44]} 10. Bd3 {[%clk 0:02:51]}  Nbd7 {[%clk 0:02:44]} 11. O-O {[%clk 0:02:50]}  c5 {[%clk 0:02:43]} 12. Bd6 {[%clk 0:01:54]}  Re8 {[%clk 0:02:42]} 13. Nb5 {[%clk 0:01:49]}  dxc4 {[%clk 0:02:16]} 14. Bxc4 {[%clk 0:01:47]}  Ne4 {[%clk 0:02:15]} 15. Bh2 {[%clk 0:01:41]}  e5 {[%clk 0:02:15]} 16. Qb3 {[%clk 0:01:30]}  Qe7 {[%clk 0:01:46]} 17. Nc7 {[%clk 0:01:29]}  cxd4 {[%clk 0:01:42]} 18. exd4 {[%clk 0:01:23]}  exd4 {[%clk 0:01:42]} 19. Rfe1 {[%clk 0:01:20]}  Ndc5 {[%clk 0:01:38]} 20. Qd1 {[%clk 0:01:19]}  Rad8 {[%clk 0:01:27]} 21. Nxe8 {[%clk 0:01:19]}  Rxe8 {[%clk 0:01:26]} 22. b4 {[%clk 0:01:19]}  Ne6 {[%clk 0:01:24]} 23. Bxe6 {[%clk 0:01:11]}  Qxe6 {[%clk 0:01:16]} 24. Nxd4 {[%clk 0:01:10]}  Qa2 {[%clk 0:01:16]} 25. Qe2 {[%clk 0:00:51]}  Qxa3 {[%clk 0:01:10]} 26. Nc6 {[%clk 0:00:51]}  Re6 {[%clk 0:00:38]} 27. b5 {[%clk 0:00:49]}  Bf8 {[%clk 0:00:24]} 28. Qc2 {[%clk 0:00:45]}  Bc5 {[%clk 0:00:22]} 29. Rf1 {[%clk 0:00:37]}  Bf8 {[%clk 0:00:07]} 30. Rce1 {[%clk 0:00:33]}  a6 {[%clk 0:00:05]} 31. Rxe4 {[%clk 0:00:32]} 1-0


[Site "https://www.chess.com"]

[Event "Titled Tuesday Blitz February 15 Late 2022"]
[White "Sarkar, Justin"]
[Black "Petrovic, Aleksa"]
[WhiteFideId "2010011"]
[BlackFideId "967629"]
[WhiteElo "2038"]
[BlackElo "2139"]
[Result "1-0"]
[Round "06"]
[TimeControl "180+1"]
[Date "2022.02.16"]
[WhiteClock "0:00:04"]
[BlackClock "0:00:02"]

1. d4 {[%clk 0:02:49]}  d5 {[%clk 0:02:58]} 2. c4 {[%clk 0:02:48]}  c6 {[%clk 0:02:58]} 3. Nf3 {[%clk 0:02:47]}  Nf6 {[%clk 0:02:58]} 4. Nc3 {[%clk 0:02:41]}  e6 {[%clk 0:02:57]} 5. Bg5 {[%clk 0:02:32]}  dxc4 {[%clk 0:02:57]} 6. e4 {[%clk 0:02:26]}  b5 {[%clk 0:02:57]} 7. e5 {[%clk 0:02:26]}  h6 {[%clk 0:02:58]} 8. Bh4 {[%clk 0:02:26]}  g5 {[%clk 0:02:58]} 9. Nxg5 {[%clk 0:02:26]}  hxg5 {[%clk 0:02:59]} 10. Bxg5 {[%clk 0:02:26]}  Nbd7 {[%clk 0:03:00]} 11. g3 {[%clk 0:02:27]}  Bb7 {[%clk 0:03:00]} 12. Bg2 {[%clk 0:02:26]}  Qb6 {[%clk 0:03:00]} 13. exf6 {[%clk 0:02:25]}  O-O-O {[%clk 0:03:00]} 14. O-O {[%clk 0:02:23]}  c5 {[%clk 0:03:01]} 15. d5 {[%clk 0:02:21]}  b4 {[%clk 0:03:01]} 16. Rb1 {[%clk 0:02:17]}  Qa6 {[%clk 0:03:01]} 17. dxe6 {[%clk 0:02:14]}  Bxg2 {[%clk 0:03:02]} 18. e7 {[%clk 0:02:08]}  Bxf1 {[%clk 0:03:02]} 19. Kxf1 {[%clk 0:02:00]}  Bxe7 {[%clk 0:02:55]} 20. fxe7 {[%clk 0:01:59]}  Rdg8 {[%clk 0:02:55]} 21. Ne4 {[%clk 0:01:58]}  Rxg5 {[%clk 0:02:24]} 22. Nxg5 {[%clk 0:01:52]}  Qg6 {[%clk 0:02:20]} 23. h4 {[%clk 0:01:42]}  Re8 {[%clk 0:02:10]} 24. Rc1 {[%clk 0:01:32]}  Ne5 {[%clk 0:01:58]} 25. Qd5 {[%clk 0:01:21]}  Qd3+ {[%clk 0:01:30]} 26. Qxd3 {[%clk 0:01:20]}  Nxd3 {[%clk 0:01:31]} 27. Rxc4 {[%clk 0:01:16]}  Rxe7 {[%clk 0:01:32]} 28. h5 {[%clk 0:01:07]}  f6 {[%clk 0:01:22]} 29. Ne4 {[%clk 0:01:04]}  Re5 {[%clk 0:01:14]} 30. Nxf6 {[%clk 0:00:33]}  Rf5 {[%clk 0:01:10]} 31. h6 {[%clk 0:00:20]}  Rxf2+ {[%clk 0:00:58]} 32. Kg1 {[%clk 0:00:19]}  Rxf6 {[%clk 0:00:59]} 33. h7 {[%clk 0:00:19]}  Rh6 {[%clk 0:00:39]} 34. Rh4 {[%clk 0:00:18]}  Rxh7 {[%clk 0:00:39]} 35. Rxh7 {[%clk 0:00:18]}  Nxb2 {[%clk 0:00:29]} 36. Kf2 {[%clk 0:00:17]}  c4 {[%clk 0:00:29]} 37. Ke2 {[%clk 0:00:15]}  c3 {[%clk 0:00:29]} 38. g4 {[%clk 0:00:14]}  Nc4 {[%clk 0:00:26]} 39. Kd3 {[%clk 0:00:13]}  Ne5+ {[%clk 0:00:26]} 40. Kc2 {[%clk 0:00:13]}  Nxg4 {[%clk 0:00:26]} 41. Rxa7 {[%clk 0:00:13]}  Ne3+ {[%clk 0:00:26]} 42. Kb3 {[%clk 0:00:11]}  Kb8 {[%clk 0:00:16]} 43. Re7 {[%clk 0:00:11]}  Nd5 {[%clk 0:00:16]} 44. Re5 {[%clk 0:00:10]}  Nf4 {[%clk 0:00:13]} 45. Rb5+ {[%clk 0:00:10]}  Kc7 {[%clk 0:00:13]} 46. Rxb4 {[%clk 0:00:10]}  Nd5 {[%clk 0:00:12]} 47. Rc4+ {[%clk 0:00:09]}  Kb6 {[%clk 0:00:12]} 48. a4 {[%clk 0:00:05]}  Ka6 {[%clk 0:00:12]} 49. Rc5 {[%clk 0:00:05]}  Nb6 {[%clk 0:00:09]} 50. Rxc3 {[%clk 0:00:05]}  Na8 {[%clk 0:00:07]} 51. Rc5 {[%clk 0:00:05]}  Nb6 {[%clk 0:00:07]} 52. Kb4 {[%clk 0:00:04]}  Nd7 {[%clk 0:00:06]} 53. Rc6+ {[%clk 0:00:03]}  Kb7 {[%clk 0:00:06]} 54. Rd6 {[%clk 0:00:04]}  Nb8 {[%clk 0:00:06]} 55. a5 {[%clk 0:00:03]}  Nc6+ {[%clk 0:00:05]} 56. Kb5 {[%clk 0:00:03]}  Na7+ {[%clk 0:00:05]} 57. Kc5 {[%clk 0:00:04]}  Nc8 {[%clk 0:00:04]} 58. Re6 {[%clk 0:00:03]}  Na7 {[%clk 0:00:03]} 59. a6+ {[%clk 0:00:03]}  Kb8 {[%clk 0:00:02]} 60. Re8+ {[%clk 0:00:03]}  Nc8 {[%clk 0:00:02]} 61. Kc6 {[%clk 0:00:03]}  Ka8 {[%clk 0:00:01]} 62. Rxc8+ {[%clk 0:00:03]}  Ka7 {[%clk 0:00:02]} 63. Rd8 {[%clk 0:00:04]} 1-0


[Site "https://www.chess.com"]

[Event "Titled Tuesday Blitz February 15 Late 2022"]
[White "Senthil Maran K"]
[Black "Jarocka, Liwia"]
[WhiteFideId "25035681"]
[BlackFideId "21807558"]
[WhiteElo "2194"]
[BlackElo "1896"]
[Result "0-1"]
[Round "06"]
[TimeControl "180+1"]
[Date "2022.02.16"]
[WhiteClock "0:00:03"]
[BlackClock "0:00:40"]

1. d4 {[%clk 0:03:00]}  c5 {[%clk 0:02:54]} 2. d5 {[%clk 0:02:59]}  g6 {[%clk 0:02:53]} 3. Nc3 {[%clk 0:02:58]}  Bg7 {[%clk 0:02:54]} 4. e4 {[%clk 0:02:58]}  d6 {[%clk 0:02:53]} 5. Bc4 {[%clk 0:02:57]}  Nf6 {[%clk 0:02:53]} 6. a4 {[%clk 0:02:56]}  O-O {[%clk 0:02:54]} 7. Nf3 {[%clk 0:02:56]}  Bg4 {[%clk 0:02:47]} 8. O-O {[%clk 0:02:55]}  Nbd7 {[%clk 0:02:46]} 9. Bf4 {[%clk 0:02:56]}  a6 {[%clk 0:02:44]} 10. h3 {[%clk 0:02:54]}  Bxf3 {[%clk 0:02:42]} 11. Qxf3 {[%clk 0:02:55]}  Nh5 {[%clk 0:02:41]} 12. Bh2 {[%clk 0:02:53]}  Ne5 {[%clk 0:02:40]} 13. Qe2 {[%clk 0:02:51]}  Nxc4 {[%clk 0:02:40]} 14. Qxc4 {[%clk 0:02:52]}  Rb8 {[%clk 0:02:41]} 15. a5 {[%clk 0:02:52]}  b5 {[%clk 0:02:36]} 16. axb6 {[%clk 0:02:51]}  Qxb6 {[%clk 0:02:37]} 17. Na4 {[%clk 0:02:44]}  Qb5 {[%clk 0:02:35]} 18. Qxb5 {[%clk 0:02:35]}  axb5 {[%clk 0:02:30]} 19. Nc3 {[%clk 0:02:35]}  b4 {[%clk 0:02:22]} 20. Na4 {[%clk 0:02:30]}  Nf6 {[%clk 0:02:23]} 21. Rfe1 {[%clk 0:02:26]}  Nd7 {[%clk 0:02:20]} 22. Rad1 {[%clk 0:02:22]}  b3 {[%clk 0:02:17]} 23. cxb3 {[%clk 0:02:15]}  Rxb3 {[%clk 0:02:15]} 24. f4 {[%clk 0:02:14]}  Rfb8 {[%clk 0:02:14]} 25. e5 {[%clk 0:02:14]}  R8b4 {[%clk 0:02:09]} 26. Nc3 {[%clk 0:02:07]}  Rxb2 {[%clk 0:02:07]} 27. e6 {[%clk 0:02:00]}  Nf8 {[%clk 0:02:02]} 28. Ne4 {[%clk 0:01:56]}  f5 {[%clk 0:01:58]} 29. Ng5 {[%clk 0:01:55]}  Ra2 {[%clk 0:01:51]} 30. Rd3 {[%clk 0:01:41]}  Bd4+ {[%clk 0:01:39]} 31. Kh1 {[%clk 0:01:40]}  Rbb2 {[%clk 0:01:38]} 32. Bg1 {[%clk 0:01:33]}  Rxg2 {[%clk 0:01:35]} 33. Bxd4 {[%clk 0:01:33]}  cxd4 {[%clk 0:01:34]} 34. Rxd4 {[%clk 0:01:34]}  Rh2+ {[%clk 0:01:34]} 35. Kg1 {[%clk 0:01:34]}  h6 {[%clk 0:01:27]} 36. Nf3 {[%clk 0:01:28]}  Rxh3 {[%clk 0:01:26]} 37. Rd3 {[%clk 0:01:22]}  Rg3+ {[%clk 0:01:25]} 38. Kf1 {[%clk 0:01:20]}  Kg7 {[%clk 0:01:24]} 39. Re2 {[%clk 0:01:19]}  Ra1+ {[%clk 0:01:19]} 40. Re1 {[%clk 0:01:18]}  Rxe1+ {[%clk 0:01:18]} 41. Kxe1 {[%clk 0:01:19]}  Rg4 {[%clk 0:01:19]} 42. Ke2 {[%clk 0:01:15]}  Rxf4 {[%clk 0:01:18]} 43. Ra3 {[%clk 0:01:15]}  Re4+ {[%clk 0:01:17]} 44. Kf2 {[%clk 0:01:15]}  g5 {[%clk 0:01:16]} 45. Ra8 {[%clk 0:01:13]}  Rf4 {[%clk 0:01:13]} 46. Ke3 {[%clk 0:01:09]}  Re4+ {[%clk 0:01:12]} 47. Kf2 {[%clk 0:01:09]}  Ng6 {[%clk 0:01:08]} 48. Ra5 {[%clk 0:00:49]}  Nf4 {[%clk 0:01:07]} 49. Kf1 {[%clk 0:00:32]}  Kf6 {[%clk 0:01:06]} 50. Kf2 {[%clk 0:00:32]}  Re2+ {[%clk 0:01:05]} 51. Kf1 {[%clk 0:00:32]}  Re3 {[%clk 0:01:05]} 52. Kf2 {[%clk 0:00:32]}  Rd3 {[%clk 0:01:05]} 53. Ra8 {[%clk 0:00:31]}  Rxd5 {[%clk 0:01:03]} 54. Rh8 {[%clk 0:00:28]}  Kg7 {[%clk 0:01:02]} 55. Re8 {[%clk 0:00:27]}  Kf6 {[%clk 0:01:01]} 56. Rh8 {[%clk 0:00:27]}  g4 {[%clk 0:00:51]} 57. Nh4 {[%clk 0:00:20]}  Nxe6 {[%clk 0:00:49]} 58. Ng2 {[%clk 0:00:12]}  Rd2+ {[%clk 0:00:47]} 59. Kg3 {[%clk 0:00:12]}  f4+ {[%clk 0:00:45]} 60. Kh2 {[%clk 0:00:12]}  f3 {[%clk 0:00:43]} 61. Rxh6+ {[%clk 0:00:11]}  Kg5 {[%clk 0:00:43]} 62. Rxe6 {[%clk 0:00:11]}  Rxg2+ {[%clk 0:00:44]} 63. Kh1 {[%clk 0:00:12]}  Rd2 {[%clk 0:00:43]} 64. Rxe7 {[%clk 0:00:09]}  Kf4 {[%clk 0:00:43]} 65. Re1 {[%clk 0:00:05]}  d5 {[%clk 0:00:41]} 66. Kg1 {[%clk 0:00:04]}  d4 {[%clk 0:00:42]} 67. Kf1 {[%clk 0:00:04]}  d3 {[%clk 0:00:42]} 68. Re8 {[%clk 0:00:04]}  Kg3 {[%clk 0:00:41]} 69. Rh8 {[%clk 0:00:03]}  Rd1# {[%clk 0:00:40]} 0-1


[Site "https://www.chess.com"]

[Event "Titled Tuesday Blitz February 15 Late 2022"]
[White "Sliwicki, Damian"]
[Black "Rorrer, Grayson"]
[WhiteFideId "1127128"]
[BlackFideId "30944996"]
[WhiteElo "2084"]
[BlackElo "2122"]
[Result "0-1"]
[Round "06"]
[TimeControl "180+1"]
[Date "2022.02.16"]
[WhiteClock "0:00:48"]
[BlackClock "0:01:04"]

1. e4 {[%clk 0:02:48]}  c5 {[%clk 0:02:59]} 2. Nf3 {[%clk 0:02:48]}  d6 {[%clk 0:02:59]} 3. d4 {[%clk 0:02:47]}  cxd4 {[%clk 0:03:00]} 4. Qxd4 {[%clk 0:02:47]}  Nc6 {[%clk 0:02:53]} 5. Bb5 {[%clk 0:02:37]}  Bd7 {[%clk 0:02:53]} 6. Bxc6 {[%clk 0:02:37]}  Bxc6 {[%clk 0:02:54]} 7. Nc3 {[%clk 0:02:36]}  h6 {[%clk 0:02:53]} 8. Be3 {[%clk 0:02:33]}  Nf6 {[%clk 0:02:50]} 9. O-O-O {[%clk 0:02:31]}  e5 {[%clk 0:02:50]} 10. Qd3 {[%clk 0:02:30]}  Be7 {[%clk 0:02:44]} 11. Kb1 {[%clk 0:02:25]}  Qa5 {[%clk 0:02:43]} 12. h4 {[%clk 0:02:17]}  b5 {[%clk 0:02:33]} 13. a3 {[%clk 0:02:06]}  b4 {[%clk 0:02:32]} 14. axb4 {[%clk 0:02:07]}  Qxb4 {[%clk 0:02:32]} 15. Nd2 {[%clk 0:02:00]}  Rb8 {[%clk 0:02:20]} 16. Nb3 {[%clk 0:01:58]}  a5 {[%clk 0:02:08]} 17. Qa6 {[%clk 0:01:50]}  Bxe4 {[%clk 0:01:40]} 18. Nxe4 {[%clk 0:01:37]}  Qxe4 {[%clk 0:01:41]} 19. Qa7 {[%clk 0:01:20]}  Rxb3 {[%clk 0:01:35]} 20. f3 {[%clk 0:01:19]}  Qxe3 {[%clk 0:01:14]} 21. Qa8+ {[%clk 0:01:19]}  Kd7 {[%clk 0:01:11]} 22. Qxh8 {[%clk 0:01:19]}  Rb4 {[%clk 0:01:05]} 23. Qb8 {[%clk 0:00:48]}  Rxb8 {[%clk 0:01:04]} 0-1


[Site "https://www.chess.com"]

[Event "Titled Tuesday Blitz February 15 Late 2022"]
[White "Sohal, Tanraj"]
[Black "Reprintsev, Alexander"]
[WhiteFideId "2608499"]
[BlackFideId "14100541"]
[WhiteElo "2200"]
[BlackElo "2126"]
[Result "1-0"]
[Round "06"]
[TimeControl "180+1"]
[Date "2022.02.16"]
[WhiteClock "0:00:14"]
[BlackClock "0:00:02"]

1. d4 {[%clk 0:03:00]}  d5 {[%clk 0:02:35]} 2. Nf3 {[%clk 0:03:01]}  Nc6 {[%clk 0:02:33]} 3. g3 {[%clk 0:03:01]}  Bf5 {[%clk 0:02:32]} 4. Bg2 {[%clk 0:03:01]}  Nb4 {[%clk 0:02:32]} 5. Na3 {[%clk 0:03:00]}  e6 {[%clk 0:02:32]} 6. O-O {[%clk 0:03:00]}  h6 {[%clk 0:02:32]} 7. c3 {[%clk 0:03:01]}  Nc6 {[%clk 0:02:31]} 8. Nc2 {[%clk 0:03:01]}  Nf6 {[%clk 0:02:30]} 9. Ne5 {[%clk 0:03:00]}  Nxe5 {[%clk 0:02:05]} 10. dxe5 {[%clk 0:03:01]}  Nd7 {[%clk 0:02:05]} 11. f4 {[%clk 0:03:00]}  c5 {[%clk 0:02:04]} 12. e4 {[%clk 0:02:53]}  dxe4 {[%clk 0:02:02]} 13. Qe2 {[%clk 0:02:52]}  Qb6 {[%clk 0:01:46]} 14. Kh1 {[%clk 0:02:50]}  Qc6 {[%clk 0:01:40]} 15. b4 {[%clk 0:02:45]}  cxb4 {[%clk 0:01:26]} 16. cxb4 {[%clk 0:02:37]}  Rc8 {[%clk 0:01:23]} 17. Nd4 {[%clk 0:02:36]}  Qc4 {[%clk 0:01:23]} 18. Qxc4 {[%clk 0:02:31]}  Rxc4 {[%clk 0:01:22]} 19. Be3 {[%clk 0:02:26]}  Bxb4 {[%clk 0:01:19]} 20. Rfd1 {[%clk 0:02:23]}  Nb6 {[%clk 0:01:10]} 21. Nb5 {[%clk 0:02:13]}  Nd5 {[%clk 0:01:05]} 22. Bxa7 {[%clk 0:02:05]}  O-O {[%clk 0:01:04]} 23. a3 {[%clk 0:01:54]}  Be7 {[%clk 0:00:47]} 24. Nd4 {[%clk 0:01:37]}  Ne3 {[%clk 0:00:43]} 25. Nxf5 {[%clk 0:01:34]}  Nxf5 {[%clk 0:00:43]} 26. Rac1 {[%clk 0:01:28]}  Rfc8 {[%clk 0:00:41]} 27. Rxc4 {[%clk 0:01:25]}  Rxc4 {[%clk 0:00:41]} 28. Re1 {[%clk 0:01:19]}  Bxa3 {[%clk 0:00:31]} 29. Bxe4 {[%clk 0:01:18]}  Bb4 {[%clk 0:00:25]} 30. Re2 {[%clk 0:01:14]}  Bc5 {[%clk 0:00:20]} 31. Bxc5 {[%clk 0:01:11]}  Rxc5 {[%clk 0:00:20]} 32. Bxb7 {[%clk 0:01:11]}  Nd4 {[%clk 0:00:19]} 33. Rd2 {[%clk 0:01:09]}  Rc4 {[%clk 0:00:18]} 34. Kg2 {[%clk 0:01:07]}  g5 {[%clk 0:00:18]} 35. Be4 {[%clk 0:00:59]}  gxf4 {[%clk 0:00:17]} 36. gxf4 {[%clk 0:00:59]}  Kg7 {[%clk 0:00:18]} 37. Bf3 {[%clk 0:00:58]}  Nb3 {[%clk 0:00:16]} 38. Rb2 {[%clk 0:00:55]}  Nc5 {[%clk 0:00:16]} 39. Kg3 {[%clk 0:00:54]}  Rxf4 {[%clk 0:00:12]} 40. Rc2 {[%clk 0:00:37]}  Nd3 {[%clk 0:00:06]} 41. Rd2 {[%clk 0:00:32]}  Rxf3+ {[%clk 0:00:04]} 42. Kxf3 {[%clk 0:00:32]}  Nxe5+ {[%clk 0:00:05]} 43. Ke4 {[%clk 0:00:33]}  Ng6 {[%clk 0:00:05]} 44. Rf2 {[%clk 0:00:32]}  f5+ {[%clk 0:00:06]} 45. Kf3 {[%clk 0:00:31]}  Kf6 {[%clk 0:00:07]} 46. Rb2 {[%clk 0:00:31]}  Ne5+ {[%clk 0:00:08]} 47. Kg3 {[%clk 0:00:32]}  Kg5 {[%clk 0:00:07]} 48. Rb6 {[%clk 0:00:29]}  f4+ {[%clk 0:00:07]} 49. Kh3 {[%clk 0:00:28]}  Kf5 {[%clk 0:00:07]} 50. Kh4 {[%clk 0:00:28]}  Nf3+ {[%clk 0:00:07]} 51. Kh3 {[%clk 0:00:25]}  Ng5+ {[%clk 0:00:07]} 52. Kg2 {[%clk 0:00:25]}  h5 {[%clk 0:00:06]} 53. Rb8 {[%clk 0:00:23]}  h4 {[%clk 0:00:06]} 54. h3 {[%clk 0:00:21]}  e5 {[%clk 0:00:04]} 55. Rh8 {[%clk 0:00:18]}  e4 {[%clk 0:00:04]} 56. Rxh4 {[%clk 0:00:17]}  e3 {[%clk 0:00:03]} 57. Rh8 {[%clk 0:00:15]}  Nf7 {[%clk 0:00:02]} 58. Rf8 {[%clk 0:00:14]} 1-0


[Site "https://www.chess.com"]

[Event "Titled Tuesday Blitz February 15 Late 2022"]
[White "Stanisz, Patryk"]
[Black "Toncheva, Nadya"]
[WhiteFideId "1123106"]
[BlackFideId "2924056"]
[WhiteElo "1876"]
[BlackElo "1920"]
[Result "0-1"]
[Round "06"]
[TimeControl "180+1"]
[Date "2022.02.16"]
[WhiteClock "0:00:16"]
[BlackClock "0:00:22"]

1. c4 {[%clk 0:03:00]}  Nf6 {[%clk 0:02:59]} 2. g3 {[%clk 0:03:01]}  g6 {[%clk 0:02:57]} 3. Bg2 {[%clk 0:03:01]}  Bg7 {[%clk 0:02:58]} 4. Nc3 {[%clk 0:03:01]}  O-O {[%clk 0:02:58]} 5. e4 {[%clk 0:03:00]}  e5 {[%clk 0:02:58]} 6. Nge2 {[%clk 0:02:56]}  d6 {[%clk 0:02:55]} 7. O-O {[%clk 0:02:56]}  Be6 {[%clk 0:02:55]} 8. b3 {[%clk 0:02:55]}  c6 {[%clk 0:02:56]} 9. d4 {[%clk 0:02:53]}  exd4 {[%clk 0:02:56]} 10. Nxd4 {[%clk 0:02:53]}  Re8 {[%clk 0:02:56]} 11. Ba3 {[%clk 0:02:48]}  Qc7 {[%clk 0:02:50]} 12. Rc1 {[%clk 0:02:46]}  Nbd7 {[%clk 0:02:40]} 13. Re1 {[%clk 0:02:34]}  Nc5 {[%clk 0:02:33]} 14. Nxe6 {[%clk 0:02:15]}  Rxe6 {[%clk 0:02:28]} 15. e5 {[%clk 0:02:08]}  Nfd7 {[%clk 0:02:22]} 16. exd6 {[%clk 0:01:12]}  Rxd6 {[%clk 0:02:23]} 17. Qe2 {[%clk 0:01:00]}  Re6 {[%clk 0:02:22]} 18. Qd2 {[%clk 0:00:52]}  Rae8 {[%clk 0:02:15]} 19. Rxe6 {[%clk 0:00:49]}  Nxe6 {[%clk 0:01:47]} 20. Rd1 {[%clk 0:00:43]}  Ne5 {[%clk 0:01:42]} 21. Ne4 {[%clk 0:00:39]}  Rd8 {[%clk 0:01:39]} 22. Qe2 {[%clk 0:00:36]}  Nd4 {[%clk 0:01:35]} 23. Qe3 {[%clk 0:00:26]}  Ng4 {[%clk 0:00:45]} 24. Qe1 {[%clk 0:00:18]}  Nc2 {[%clk 0:00:36]} 25. Rxd8+ {[%clk 0:00:12]}  Qxd8 {[%clk 0:00:37]} 26. Qc1 {[%clk 0:00:08]}  Nxa3 {[%clk 0:00:25]} 27. Qxa3 {[%clk 0:00:09]}  Qd1+ {[%clk 0:00:25]} 28. Bf1 {[%clk 0:00:09]}  Bd4 {[%clk 0:00:18]} 29. Qe7 {[%clk 0:00:08]}  Kg7 {[%clk 0:00:10]} 30. h3 {[%clk 0:00:07]}  Ne5 {[%clk 0:00:06]} 31. Kg2 {[%clk 0:00:04]}  Nd3 {[%clk 0:00:03]} 32. Qd6 {[%clk 0:00:02]}  Ne1+ {[%clk 0:00:03]} 33. Kg1 {[%clk 0:00:02]}  Bxf2+ {[%clk 0:00:04]} 34. Nxf2 {[%clk 0:00:02]}  Qxd6 {[%clk 0:00:03]} 35. Be2 {[%clk 0:00:01]}  Qxg3+ {[%clk 0:00:03]} 36. Kf1 {[%clk 0:00:01]}  Nf3 {[%clk 0:00:03]} 37. Bxf3 {[%clk 0:00:02]}  Qc7 {[%clk 0:00:04]} 38. Ke1 {[%clk 0:00:03]}  Qb6 {[%clk 0:00:05]} 39. Kf1 {[%clk 0:00:04]}  c5 {[%clk 0:00:05]} 40. Kg2 {[%clk 0:00:04]}  Qc7 {[%clk 0:00:06]} 41. Ne4 {[%clk 0:00:04]}  Qe5 {[%clk 0:00:07]} 42. Ng3 {[%clk 0:00:05]}  Qb2+ {[%clk 0:00:07]} 43. Ne2 {[%clk 0:00:05]}  Qxa2 {[%clk 0:00:08]} 44. Kg3 {[%clk 0:00:06]}  Qxb3 {[%clk 0:00:09]} 45. Nf4 {[%clk 0:00:06]}  Qxc4 {[%clk 0:00:09]} 46. Nd5 {[%clk 0:00:07]}  Qd4 {[%clk 0:00:09]} 47. Nf4 {[%clk 0:00:08]}  Qe5 {[%clk 0:00:09]} 48. Kg4 {[%clk 0:00:07]}  h5+ {[%clk 0:00:09]} 49. Kg3 {[%clk 0:00:08]}  g5 {[%clk 0:00:10]} 50. Bg4 {[%clk 0:00:08]}  Qxf4+ {[%clk 0:00:10]} 51. Kg2 {[%clk 0:00:06]}  hxg4 {[%clk 0:00:11]} 52. hxg4 {[%clk 0:00:07]}  Qxg4+ {[%clk 0:00:12]} 53. Kh2 {[%clk 0:00:07]}  Qf4+ {[%clk 0:00:13]} 54. Kh1 {[%clk 0:00:08]}  b5 {[%clk 0:00:14]} 55. Kg2 {[%clk 0:00:08]}  b4 {[%clk 0:00:15]} 56. Kh3 {[%clk 0:00:09]}  b3 {[%clk 0:00:16]} 57. Kg2 {[%clk 0:00:10]}  b2 {[%clk 0:00:16]} 58. Kh3 {[%clk 0:00:11]}  a5 {[%clk 0:00:17]} 59. Kg2 {[%clk 0:00:11]}  a4 {[%clk 0:00:18]} 60. Kh3 {[%clk 0:00:12]}  a3 {[%clk 0:00:19]} 61. Kg2 {[%clk 0:00:13]}  a2 {[%clk 0:00:20]} 62. Kh3 {[%clk 0:00:14]}  c4 {[%clk 0:00:20]} 63. Kg2 {[%clk 0:00:15]}  c3 {[%clk 0:00:21]} 64. Kh1 {[%clk 0:00:16]}  c2 {[%clk 0:00:22]} 65. Kg2 {[%clk 0:00:16]}  Qe4+ {[%clk 0:00:22]} 0-1


[Site "https://www.chess.com"]